[Event "WSTCC-50 2024"]
[Site "Krakow"]
[Date "2024.07.02"]
[Round "1.9"]
[White "Buckley, Graeme N"]
[Black "Skibbe, Diana"]
[Result "1-0"]
[ECO "C80"]
[WhiteElo "2334"]
[BlackElo "1942"]
[Annotator "TA"]
[PlyCount "73"]
[EventDate "2024.07.01"]
[EventType "team-tourn"]
[EventCountry "POL"]
[SourceTitle "playchess.com"]
[Source "ChessBase"]
[SourceQuality "1"]
[TimeControl "40/5400+30:1800+30"]

{[%evp 19,73,7,26,19,166,176,161,160,157,170,164,143,158,104,95,91,85,95,106,68,342,336,385,377,706,258,264,210,221,213,831,831,808,300,268,291,302,294,318,318,383,383,383,383,895,876,1904,1982,1279,1265,29976,29977,29990,29991,29991,6442]} 1. e4 {[%emt 0:00:06]} e5 {[%emt 0:00:02]} 2. Nf3 {[%emt 0:00:45]} Nc6 {[%emt 0:00:03]} 3. Bb5 {[%emt 0:00:05]} a6 {[%emt 0:00:10]} 4. Ba4 {[%emt 0:00:02]} Nf6 {[%emt 0:00:07]} 5. O-O {[%emt 0:00:17]} Nxe4 {[%emt 0:02:52]} 6. d4 {[%emt 0:00:20]} b5 {[%emt 0:00:08]} 7. Bb3 {[%emt 0:00:02]} d5 {[%emt 0:00:14]} 8. dxe5 {[%emt 0:00:05]} Be6 {[%emt 0:00:03]} 9. Be3 {[%emt 0:00:48]} Be7 {[%emt 0:01:28]} 10. c3 {[%emt 0:00:27]} Na5 {[%emt 0:02:16]} 11. Nd4 {[%emt 0:10:13]} c5 {[%emt 0:07:59]} (11... O-O $11) 12. Nxe6 $18 {[%emt 0:01:11]} fxe6 {[%emt 0:00:04] [#]} 13. Qg4 $1 {[%emt 0:06:31][%csl LRe6,LRg7] White is clearly better.} Nxb3 {[%emt 0:00:33]} 14. axb3 {[%emt 0:00:18]} (14. Qxg7 Nxa1 15. Qxh8+ Kd7 16. Qxh7 Nc2 $14) 14... O-O {[%emt 0:11:00]} 15. Qxe6+ {[%emt 0:02:57]} Kh8 {[%emt 0:00:07]} 16. Rd1 {[%emt 0:16:40]} (16. Rxa6 Rxa6 17. Qxa6 d4 $11) ({White should play} 16. Nd2 {Strongly threatening Nxe4.} Nxd2 17. Bxd2) 16... Bg5 {[%emt 0:02:33] [#] Hoping for ...Bxe3.} 17. Nd2 {[%emt 0:11:34] Nxe4 is the strong threat. White is more active.} (17. Rxa6 $2 Bxe3 18. Rxa8 (18. fxe3 $2 Rxa6 19. Qxa6 Qh4 $19) 18... Bxf2+ (18... Qxa8 19. fxe3 d4 20. exd4 $11) 19. Kh1 Qxa8 $19) 17... Bxe3 {[%emt 0:03:10]} 18. Nxe4 {[%emt 0:00:46]} Qh4 {[%emt 0:00:46]} 19. Qxd5 {[%emt 0:08:43]} (19. Rxd5 $2 Bxf2+ 20. Kh1 (20. Nxf2 $2 Qxf2+ 21. Kh1 Qf1+ 22. Rxf1 Rxf1#) 20... Qxe4 $19) 19... Bxf2+ {[%emt 0:00:45][%mdl 8192]} (19... Rad8 $1 $14 20. Qb7 Bxf2+ 21. Kh1 Rxd1+ 22. Rxd1 Qg4) 20. Kh1 {[%emt 0:00:49][%cal Og2g3] g3! would now be deadly. Black is weak on the light squares} Rab8 {[%emt 0:27:03]} 21. e6 {[%emt 0:10:53][%cal Od5e5,Be5e6,Be6e7][%mdl 32] Threatens to win with Qe5!} (21. Nxc5 Bg3 22. h3 (22. Rxa6 $2 Qxh2#) 22... Rbd8 $18) (21. Rxa6 Be1 22. Nd2 (22. Nxc5 $2 Rf1#) 22... Bxd2 23. Qxd2 Rf2 $18) 21... Rf4 $2 {[%emt 0:12:24]} (21... h6 22. Qe5 (22. Nxc5 Rbd8 $18) (22. Rxa6 Be1 $14) 22... Qf4 23. Qxf4 Rxf4) 22. Nxf2 $2 {[%emt 0:00:41]} (22. Nxc5 $2 Qxh2+ 23. Kxh2 Rh4#) (22. Ng5 {[%cal Oe6e7] e7! would kill now.} Bg3 23. Nh3 (23. Qxc5 $2 Qxh2#)) 22... Rxf2 {[%emt 0:00:53]} 23. Qe5 {[%emt 0:10:41] Prevents Re2.} (23. Qxc5 $6 Re2 $18) 23... Re8 {[%emt 0:01:55]} 24. Rf1 $40 {[%emt 0:06:22][%mdl 128] White attacks with force.} (24. Rxa6 $6 Rxg2 25. Kxg2 Qg4+ 26. Kf2 Qxd1 $16) (24. Qxc5 Re2) 24... Rxb2 $2 {[%emt 0:07:38]} (24... Rxf1+ 25. Rxf1 h6) 25. e7 {[%emt 0:04:24]} (25. Rxa6 Qf2 26. Rg1 (26. Rxf2 $2 Rb1+) 26... Re2 $11) 25... Rf2 {[%emt 0:01:30]} 26. Qxc5 $2 {[%emt 0:02:04]} (26. Kg1 Rf6 27. Rxa6 (27. Qxc5 h6 $16) 27... Rxf1+ 28. Kxf1) 26... Rf6 {[%emt 0:00:29]} (26... Rxf1+ $2 27. Rxf1 $18) 27. h3 {[%emt 0:02:59]} h6 {[%emt 0:02:09]} (27... Rxf1+ $2 28. Rxf1 $18) 28. Rxf6 {[%emt 0:00:12]} Qxf6 {[%emt 0:02:58][%mdl 4096] Endgame. KQR-KQR} 29. Re1 {[%emt 0:00:05]} g6 {[%emt 0:03:57]} 30. Kg1 {[%emt 0:01:40] Black must now prevent Qd4.} Kg7 {[%emt 0:00:11]} 31. b4 {[%emt 0:00:17]} g5 $2 {[%emt 0:01:38]} (31... Qh4 32. Qe5+ Qf6) 32. Qc7 {[%emt 0:01:03]} Qg6 {[%emt 0:03:04]} 33. Qd7 {[%emt 0:00:47]} Qb6+ {[%emt 0:02:50]} 34. Kh2 {[%emt 0:00:34]} Qb8+ {[%emt 0:00:22]} 35. Kh1 {[%emt 0:00:04] White mates.} Qg3 {[%emt 0:00:23]} 36. Rf1 {[%emt 0:01:45]} Qb8 {[%emt 0:00:53]} 37. Qe6 {[%emt 0:00:11] Weighted Error Value: White=0.59/Black=0.66.  Loses game:     	---       	Black=1      Mistake:       	White=2     	Black=4      Inaccurate:     	White=1     	Black=1      OK:         	White=9     	Black=5      Best:        	White=3     	Black=4      Strong:       	White=1     	---} (37. Rf5 $142 a5 38. Qd4+ (38. Qxb5 Qxb5 39. Rxb5 axb4 $16) (38. bxa5 Qc8 39. Qd4+ Kh7 40. Rf7+ Kg6 41. Qf6+ Kh5 42. Rh7 Qxh3+ 43. gxh3 Kh4 44. Kg2 h5 45. Qf2#) 38... Kg8 39. Qd5+ (39. bxa5 Rxe7 40. Qd5+ Kg7 $18) 39... Kh8 40. Qe6 (40. Qxb5 Qxb5 41. Rxb5 axb4 $16) 40... Qd6 41. Qxd6 Kg7 42. Qf6+ (42. Rxb5 axb4 43. Rb6 Ra8 44. Qg6+ Kh8 45. Ra6 Rc8 46. Qf7 bxc3 47. Rxh6#) 42... Kh7 43. Qf7+ (43. Rxb5 Kg8 44. Qg6+ Kh8 45. Qxh6+ Kg8 46. Rxg5+ Kf7 47. Rg7#) 43... Kh8 44. Rf6 axb4 45. Rxh6#) 1-0

[Event "WSTCC-50 2024"]
[Site "Krakow"]
[Date "2024.07.02"]
[Round "1.9"]
[White "Dahl, Fredrik A"]
[Black "Rowe, Peter"]
[Result "1/2-1/2"]
[ECO "A41"]
[WhiteElo "2237"]
[BlackElo "1960"]
[Annotator "TA"]
[PlyCount "41"]
[EventDate "2024.07.01"]
[EventType "team-tourn"]
[EventCountry "POL"]
[SourceTitle "playchess.com"]
[Source "ChessBase"]
[SourceQuality "1"]
[TimeControl "40/5400+30:1800+30"]

{[%evp 14,41,53,47,51,41,39,41,52,48,46,43,54,54,60,48,66,60,67,65,54,57,106,15,183,65,87,0,64,-14]} 1. d4 {[%emt 0:00:06]} d6 {[%emt 0:00:22]} 2. Nf3 {[%emt 0:00:12]} Nf6 {[%emt 0:00:18]} 3. g3 {[%emt 0:00:18]} Nbd7 {[%emt 0:00:40]} 4. Bg2 {[%emt 0:00:38]} e5 {[%emt 0:00:32]} 5. O-O {[%emt 0:00:47]} Be7 {[%emt 0:00:18]} 6. c4 {[%emt 0:00:35]} c6 {[%emt 0:02:13]} 7. Nc3 {[%emt 0:00:33]} O-O {[%emt 0:02:15]} 8. e4 {[%emt 0:00:56]} Rb8 {[%emt 0:10:00]} 9. a4 {[%emt 0:11:21]} a5 {[%emt 0:01:31]} 10. h3 {[%emt 0:03:03]} exd4 {[%emt 0:08:27]} 11. Nxd4 {[%emt 0:01:03]} Nc5 {[%emt 0:01:13]} 12. Qc2 {[%emt 0:02:25]} Qc7 {[%emt 0:06:19]} 13. Be3 {[%emt 0:03:24]} Re8 {[%emt 0:07:22]} 14. Rad1 {[%emt 0:04:02]} Bf8 {[%emt 0:04:40]} 15. Rfe1 {[%emt 0:00:57]} Bd7 {[%emt 0:03:46]} 16. f4 {[%emt 0:04:02]} Rbd8 {[%emt 0:07:54]} 17. g4 {[%emt 0:05:39]} Qc8 {[%emt 0:03:37]} (17... h6 $14) 18. f5 {[%emt 0:16:49]} (18. Nb3 $16) 18... Qb8 $2 {[%emt 0:10:39]} (18... d5 $1 $11 {and Black has nothing to worry.}) 19. Bf4 {[%emt 0:03:29]} ({White must play} 19. g5 $18 Nh5 20. Bf3) 19... Bc8 $14 {[%emt 0:02:02]} 20. Nf3 {[%emt 0:09:34] White is more active.} (20. g5 $16 Nfd7 21. Re3) 20... Nfd7 {[%emt 0:03:25] [#]} (20... h6 $11) 21. e5 {[%emt 0:12:25] Weighted Error Value: White=0.33/Black=0.35.  Loses game:     	---       	Black=1      Mistake:       	White=4     	Black=2      OK:         	White=5     	Black=4} 1/2-1/2

[Event "WSTCC-50 2024"]
[Site "Krakow"]
[Date "2024.07.02"]
[Round "1.10"]
[White "Forgo, Eva"]
[Black "Petursson, Margeir"]
[Result "0-1"]
[ECO "B93"]
[WhiteElo "2060"]
[BlackElo "2397"]
[Annotator "RC"]
[PlyCount "128"]
[EventDate "2024.07.01"]
[EventType "team-tourn"]
[EventCountry "POL"]
[SourceTitle "playchess.com"]
[Source "ChessBase"]
[SourceQuality "1"]
[TimeControl "40/5400+30:1800+30"]

1. e4 {[%emt 0:00:12]} c5 {[%emt 0:00:05]} 2. Nf3 {[%emt 0:00:08]} d6 {[%emt 0:00:06]} 3. d4 {[%emt 0:00:08]} cxd4 {[%emt 0:00:08]} 4. Nxd4 {[%emt 0:00:06]} Nf6 {[%emt 0:00:06]} 5. Nc3 {[%emt 0:00:04]} a6 {[%emt 0:00:06]} 6. f4 {[%emt 0:00:54]} e5 {[%emt 0:00:20]} 7. Nf3 {[%emt 0:00:14]} Nbd7 {[%emt 0:00:08]} 8. a4 {[%emt 0:01:37]} Be7 {[%emt 0:00:18]} 9. Bd3 {[%emt 0:00:50]} O-O {[%emt 0:01:22]} 10. O-O {[%emt 0:02:21]} exf4 {[%emt 0:05:38]} 11. Bxf4 {[%emt 0:03:55]} Nc5 {[%emt 0:00:58]} 12. Kh1 {[%emt 0:07:29]} Bg4 {[%emt 0:00:55]} 13. Qd2 {[%emt 0:06:58]} Rc8 {[%emt 0:07:33]} 14. a5 {[%emt 0:17:49]} Re8 {[%emt 0:05:56]} 15. Qf2 {[%emt 0:11:12]} d5 {[%emt 0:09:27]} 16. e5 {[%emt 0:09:34]} Nfe4 {[%emt 0:02:26]} 17. Bxe4 {[%emt 0:06:24]} Nxe4 {[%emt 0:12:25]} 18. Nxe4 {[%emt 0:01:43]} dxe4 {[%emt 0:00:09]} 19. Nd4 {[%emt 0:01:37]} Bc5 {[%emt 0:07:53]} 20. c3 {[%emt 0:02:06]} Qd5 {[%emt 0:01:31]} 21. Qg3 {[%emt 0:03:39]} Bxd4 {[%emt 0:03:11]} 22. cxd4 {[%emt 0:01:21]} Bh5 {[%emt 0:01:14]} 23. Be3 {[%emt 0:05:16]} Rc2 {[%emt 0:08:46]} 24. Rf2 {[%emt 0:04:34]} Rc6 {[%emt 0:00:57]} 25. Qg5 {[%emt 0:01:04]} Bg6 {[%emt 0:01:55]} 26. h4 {[%emt 0:00:13]} h6 {[%emt 0:02:38]} 27. Qg4 {[%emt 0:00:12]} h5 {[%emt 0:01:29]} 28. Qd1 {[%emt 0:01:27]} Rec8 {[%emt 0:03:06]} 29. Kh2 {[%emt 0:01:19]} Rc4 {[%emt 0:05:40]} 30. Rd2 {[%emt 0:00:31]} Rb4 {[%emt 0:01:58]} 31. Rc2 {[%emt 0:01:40]} Rxc2 {[%emt 0:02:58]} 32. Qxc2 {[%emt 0:00:02]} Rb3 {[%emt 0:01:06]} 33. Qf2 {[%emt 0:03:24]} Qb5 {[%emt 0:01:09]} 34. Rd1 {[%emt 0:01:18]} Rxb2 {[%emt 0:04:30]} 35. Rd2 {[%emt 0:00:12]} Rxd2 {[%emt 0:01:08]} 36. Qxd2 {[%emt 0:00:01]} Qd5 {[%emt 0:00:15]} 37. Qc3 {[%emt 0:00:40]} Bf5 {[%emt 0:00:49]} 38. Qd2 {[%emt 0:00:20]} Bd7 {[%emt 0:02:29]} 39. Qc3 {[%emt 0:00:47]} Bc6 {[%emt 0:00:52]} 40. Qb4 {[%emt 0:02:27]} Qd7 {[%emt 0:02:45]} 41. Qd2 {[%emt 0:32:07]} Qd8 {[%emt 0:32:58]} 42. Qe1 {[%emt 0:00:00]} Bd5 {[%emt 0:00:00]} 43. Bg5 {[%emt 0:00:00]} Qd7 {[%emt 0:00:00]} 44. Qe2 {[%emt 0:00:00]} Qa4 {[%emt 0:00:00]} 45. Qd2 {[%emt 0:00:00]} Qc6 {[%emt 0:00:00]} 46. Qb2 {[%emt 0:00:00]} Qc7 {[%emt 0:00:00]} 47. Qd2 {[%emt 0:00:00]} b5 {[%emt 0:00:00]} 48. axb6 {[%emt 0:00:00]} Qxb6 {[%emt 0:00:00]} 49. Qc3 {[%emt 0:00:00]} Bb7 {[%emt 0:00:00]} 50. Be3 {[%emt 0:00:00]} Qe6 {[%emt 0:00:00]} 51. Qc7 {[%emt 0:00:00]} Bd5 {[%emt 0:00:00]} 52. Qd8+ {[%emt 0:00:00]} Kh7 {[%emt 0:00:00]} 53. Qg5 {[%emt 0:01:16]} Qg6 {[%emt 0:00:00]} 54. Qd8 {[%emt 0:00:23]} Qe6 {[%emt 0:00:00]} 55. Qg5 {[%emt 0:00:21]} a5 {[%emt 0:00:15]} 56. Qxh5+ {[%emt 0:00:27]} Kg8 {[%emt 0:00:03]} 57. Qd1 {[%emt 0:01:16]} Qe7 {[%emt 0:01:10]} 58. Bg5 {[%emt 0:00:31]} Qd7 {[%emt 0:00:51]} 59. Bd2 {[%emt 0:01:29]} a4 {[%emt 0:00:27]} 60. Bb4 {[%emt 0:01:03]} Qb5 {[%emt 0:01:31]} 61. Be7 {[%emt 0:02:11]} e3 {[%emt 0:02:45]} 62. Qg4 {[%emt 0:00:02]} Qd3 {[%emt 0:00:46]} 63. Qc8+ {[%emt 0:02:45]} Kh7 {[%emt 0:00:07]} 64. Qc1 {[%emt 0:00:42]} Qe4 {[%emt 0:01:46]} 0-1

[Event "WSTCC-50 2024"]
[Site "Krakow"]
[Date "2024.07.02"]
[Round "1.10"]
[White "Wolf, Sylvia"]
[Black "Dishman, Stephen"]
[Result "0-1"]
[ECO "B30"]
[WhiteElo "1992"]
[BlackElo "2308"]
[Annotator "TA"]
[PlyCount "98"]
[EventDate "2024.07.01"]
[EventType "team-tourn"]
[EventCountry "POL"]
[SourceTitle "playchess.com"]
[Source "ChessBase"]
[SourceQuality "1"]
[TimeControl "40/5400+30:1800+30"]

{[%evp 9,98,19,20,16,29,19,23,16,17,17,20,8,24,0,34,0,0,-83,-80,-83,-85,-121,-120,-111,-116,-99,-91,-99,-83,-79,-78,-117,-102,-135,-129,-147,-116,-131,-133,-134,-122,-145,-131,-208,-204,-201,-196,-236,-225,-237,-230,-218,-185,-185,-185,-244,-238,-231,-227,-252,-238,-258,-234,-282,-293,-276,-241,-366,-366,-486,-481,-687,-653,-839,-759,-965,-958,-6191,-5787,-29970,-11000,-29980,-29981,-29981,-29982,-29986,-29977,-29987,-29988,-29988,-29988]} 1. e4 {[%emt 0:00:03]} c5 {[%emt 0:00:08]} 2. Nf3 {[%emt 0:00:05]} Nc6 {[%emt 0:00:17]} 3. Bb5 {[%emt 0:00:36]} e5 {[%emt 0:00:06]} 4. O-O {[%emt 0:00:52]} Bd6 {[%emt 0:00:14]} 5. Nc3 {[%emt 0:01:06]} Nf6 {[%emt 0:01:44]} 6. d3 {[%emt 0:00:44]} a6 {[%emt 0:02:33]} 7. Bc4 {[%emt 0:01:30]} O-O {[%emt 0:01:52]} 8. Bg5 {[%emt 0:00:41] White has an edge.} Be7 {[%emt 0:00:44]} 9. Bxf6 {[%emt 0:00:54]} Bxf6 {[%emt 0:00:07]} 10. Nd5 {[%emt 0:00:32]} d6 {[%emt 0:00:34]} 11. h3 {[%emt 0:06:05]} g6 {[%emt 0:02:24]} 12. Nxf6+ {[%emt 0:01:43]} Qxf6 {[%emt 0:00:07]} 13. Qd2 {[%emt 0:05:00] [#]} (13. a4 $11) 13... Bxh3 $1 $17 {[%emt 0:03:48]} 14. Qh6 {[%emt 0:02:42]} Bd7 {[%emt 0:01:20]} 15. Ng5 {[%emt 0:04:04]} Qg7 {[%emt 0:00:39]} 16. Qh2 {[%emt 0:02:19]} Nd4 {[%emt 0:04:35]} (16... h6 {simplifies} 17. Nf3 g5 18. c3 b5) 17. c3 {[%emt 0:03:52]} Ne6 {[%emt 0:02:54]} 18. Nxe6 {[%emt 0:00:34]} Bxe6 {[%emt 0:00:30]} 19. Bxe6 {[%emt 0:01:19]} fxe6 {[%emt 0:00:01]} 20. Rae1 {[%emt 0:01:39]} Rf4 {[%emt 0:02:35]} 21. Re3 {[%emt 0:03:42]} Raf8 {[%emt 0:01:08]} 22. Rh3 {[%emt 0:01:23]} R8f7 {[%emt 0:04:48]} 23. Rh4 {[%emt 0:08:40]} Qf6 {[%emt 0:10:39][%csl LRf2,LRh4]} 24. Rxf4 {[%emt 0:00:07]} exf4 {[%emt 0:03:21][%mdl 4096] Endgame. KQR-KQR} 25. f3 {[%emt 0:02:20]} b5 {[%emt 0:11:24]} 26. g4 {[%emt 0:09:01]} (26. Rd1 $17) 26... fxg3 $19 {[%emt 0:04:49]} 27. Qxg3 {[%emt 0:00:02]} e5 {[%emt 0:00:42]} 28. Kg2 {[%emt 0:17:24]} Kg7 {[%emt 0:00:37]} 29. Rh1 {[%emt 0:07:57] [#]} h5 $1 {[%emt 0:10:09][%mdl 512]} 30. Kf2 {[%emt 0:10:54]} Qf4 {[%emt 0:01:25]} 31. Qxf4 {[%emt 0:01:35]} exf4 {[%emt 0:00:15] KR-KR} 32. Rc1 {[%emt 0:01:09]} (32. a3 $142) 32... Rc7 {[%emt 0:00:51]} 33. Rd1 {[%emt 0:00:18]} Kf6 {[%emt 0:01:16]} 34. d4 {[%emt 0:00:26]} c4 {[%emt 0:00:42]} 35. Rh1 {[%emt 0:01:52]} Rh7 {[%emt 0:00:43]} 36. Rg1 {[%emt 0:02:45]} g5 {[%emt 0:00:46]} 37. Rh1 {[%emt 0:00:41]} Kg6 {[%emt 0:01:10]} 38. d5 {[%emt 0:00:18]} (38. Rg1 {was necessary.}) 38... Rb7 {[%emt 0:04:37] Hoping for ...b4.} 39. a3 {[%emt 0:00:36]} a5 {[%emt 0:01:53]} 40. Rc1 {[%emt 0:00:28]} (40. Rg1 $142) 40... g4 {[%emt 0:01:17]} 41. Re1 {[%emt 0:04:26]} b4 {[%emt 0:04:59]} 42. axb4 {[%emt 0:03:09]} axb4 {[%emt 0:00:04]} 43. fxg4 {[%emt 0:01:15]} hxg4 {[%emt 0:00:12] ( -> ...bxc3)} 44. e5 {[%emt 0:02:36]} dxe5 {[%emt 0:01:41]} (44... bxc3 $142 45. bxc3 Rb2+ 46. Kf1 g3 47. exd6 f3 48. Rc1 Rd2 (48... Rh2 {gets mated.} 49. Ke1 Rh1+ 50. Kd2 Rxc1 51. d7 f2 52. d8=Q f1=Q 53. Qe8+ Kg5 54. Qg8+ Kh5 55. Qh8+ Kg4 56. Qc8+ Kf3 57. Qf8+ Kg2 58. Qxf1+ Rxf1 59. Ke3 Kh3 60. Kd4 g2 61. Kxc4 g1=Q 62. Kb5 Qg7 63. c4 Qc7 64. Kb4 Qb6+ 65. Kc3 Qe3+ 66. Kc2 Rf2+ 67. Kd1 Qd2#) 49. Ke1 Rxd5 50. Rb1 Kg5 (50... Rxd6 51. Ra1 Kg5 52. Ra5+ Kg4 53. Re5 g2 54. Kf2 Rd2+ 55. Ke3 g1=Q+ 56. Kxd2 Qh2+ 57. Kc1 Qxe5 58. Kb2 f2 59. Ka3 f1=Q 60. Kb4 Qb1+ 61. Kxc4 Qbb5#) 51. d7 g2 (51... Rxd7 {leads to mate.} 52. Rb5+ Kg4 53. Re5 g2 54. Kf2 Kf4 55. Re8 Rd2+ 56. Ke1 Rb2 57. Rf8+ Ke4 58. Re8+ Kd3 59. Rd8+ Kxc3 60. Rd3+ cxd3 61. Kd1 g1=Q#) 52. Kf2 Kf4 (52... Rxd7 53. Kxf3 Rd2 54. Rb8 $17) 53. d8=Q Rxd8 54. Rd1 Rd3 55. Rg1 Rd2+ (55... Rxc3 56. Rc1 g1=Q+ 57. Rxg1 Rc2+ 58. Ke1 f2+ 59. Kd1 fxg1=Q+ 60. Kxc2 Qa1 61. Kd2 Qb2+ 62. Kd1 Ke3 63. Ke1 Qe2#) 56. Ke1 f2+ 57. Kxd2 fxg1=Q (57... fxg1=R 58. Kc2 Ra1 59. Kb2 g1=Q 60. Kc2 Qh2#) 58. Ke2 Qh2 59. Kf2 g1=Q#) 45. Rxe5 {[%emt 0:00:15]} bxc3 {[%emt 0:00:14] Black mates.} 46. bxc3 {[%emt 0:00:18]} Rb2+ {[%emt 0:00:49]} 47. Ke1 {[%emt 0:01:20]} f3 {[%emt 0:15:28]} 48. Re3 {[%emt 0:03:34]} Kf5 {[%emt 0:02:55]} 49. d6 {[%emt 0:00:48]} Rb1+ {[%emt 0:01:06] Weighted Error Value: White=0.72/Black=0.19 (very precise) .  Mistake:       	White=5     	---        Inaccurate:     	White=5     	Black=1      OK:         	White=9     	Black=16     Best:        	---       	Black=1      Brilliant:      	---       	Black=1} 0-1

[Event "WSTCC-50 2024"]
[Site "Krakow"]
[Date "2024.07.02"]
[Round "1.10"]
[White "Brookfield, Toby"]
[Black "Berg, Anders Hoyer"]
[Result "0-1"]
[ECO "C54"]
[WhiteElo "1894"]
[BlackElo "2079"]
[Annotator "NA RC"]
[PlyCount "114"]
[EventDate "2024.07.01"]
[EventType "team-tourn"]
[EventCountry "POL"]
[SourceTitle "playchess.com"]
[Source "ChessBase"]
[SourceQuality "1"]
[TimeControl "40/5400+30:1800+30"]

1. e4 {[%emt 0:00:09]} e5 {[%emt 0:00:11]} 2. d4 {[%emt 0:00:24]} exd4 {[%emt 0:00:20]} 3. Nf3 {[%emt 0:00:35]} Nc6 {[%emt 0:01:13]} 4. Bc4 {[%emt 0:00:35]} Bc5 {[%emt 0:01:36]} 5. c3 {[%emt 0:01:31]} Nf6 {[%emt 0:01:53]} 6. e5 {[%emt 0:01:40]} d5 {[%emt 0:01:57]} 7. Bb5 {[%emt 0:01:11]} Ne4 {[%emt 0:00:48]} 8. Nxd4 {[%emt 0:03:10]} O-O {[%emt 0:09:21]} 9. Bxc6 {[%emt 0:05:20]} bxc6 {[%emt 0:00:05]} 10. O-O {[%emt 0:01:46]} Bxd4 {[%emt 0:10:54]} 11. cxd4 {[%emt 0:02:20]} c5 {[%emt 0:12:02]} 12. f3 {[%emt 0:07:17]} Ng5 {[%emt 0:02:03]} 13. Nc3 {[%emt 0:04:17]} cxd4 {[%emt 0:06:41]} 14. Qxd4 {[%emt 0:02:16]} Bb7 {[%emt 0:01:28]} 15. Bxg5 {[%emt 0:02:42]} Qxg5 {[%emt 0:00:08]} 16. Rad1 {[%emt 0:13:32]} c5 {[%emt 0:06:21]} 17. Qxc5 {[%emt 0:03:28]} Qxe5 {[%emt 0:00:10]} 18. Rfe1 {[%emt 0:02:52]} Qf6 {[%emt 0:01:44]} 19. Qe7 {[%emt 0:03:06]} Qb6+ {[%emt 0:02:49]} 20. Kh1 {[%emt 0:04:22]} Qxb2 {[%emt 0:03:20]} 21. Nxd5 {[%emt 0:03:47]} Bxd5 {[%emt 0:00:46]} 22. Rxd5 {[%emt 0:00:19]} Qxa2 {[%emt 0:01:31]} 23. Qe5 {[%emt 0:05:26]} h6 {[%emt 0:06:04]} 24. Ra1 {[%emt 0:02:49]} Qf2 {[%emt 0:02:30]} 25. h3 {[%emt 0:03:04]} Rfe8 {[%emt 0:02:15]} 26. Qd4 {[%emt 0:06:58]} Qxd4 {[%emt 0:08:52]} 27. Rxd4 {[%emt 0:00:06]} Re5 {[%emt 0:06:20]} 28. Ra6 {[%emt 0:00:40]} Re6 {[%emt 0:00:12]} 29. Ra5 {[%emt 0:01:40]} a6 {[%emt 0:00:20]} 30. Kg1 {[%emt 0:00:30]} Kf8 {[%emt 0:05:01]} 31. Kf2 {[%emt 0:02:25]} Ke7 {[%emt 0:00:17]} 32. Rg4 {[%emt 0:01:12]} g6 {[%emt 0:01:34]} 33. Rd4 {[%emt 0:03:08]} Ra7 {[%emt 0:00:50]} 34. Rf4 {[%emt 0:04:05]} Kd6 {[%emt 0:01:58]} 35. g4 {[%emt 0:00:52]} Kc6 {[%emt 0:01:04]} 36. Rb4 {[%emt 0:02:45]} Rd6 {[%emt 0:00:39]} 37. Ke3 {[%emt 0:01:05]} Rd5 {[%emt 0:00:42]} 38. Rc4+ {[%emt 0:00:46]} Kd6 {[%emt 0:00:07]} 39. Rd4 {[%emt 0:01:14]} Rxd4 {[%emt 0:00:20]} 40. Kxd4 {[%emt 0:00:03]} f6 {[%emt 0:01:15]} 41. h4 {[%emt 0:32:28]} Kc6 {[%emt 0:31:16]} 42. Kc4 {[%emt 0:01:47]} Kb6 {[%emt 0:00:34]} 43. Rd5 {[%emt 0:00:54]} Rc7+ {[%emt 0:00:00]} 44. Kb4 {[%emt 0:00:00]} Rc6 {[%emt 0:00:00]} 45. f4 {[%emt 0:00:00]} Re6 {[%emt 0:00:00]} 46. Rd4 {[%emt 0:00:00]} a5+ {[%emt 0:00:00]} 47. Kb3 {[%emt 0:00:00]} Kc5 {[%emt 0:00:00]} 48. Rd8 {[%emt 0:00:00]} a4+ {[%emt 0:00:00]} 49. Kb2 {[%emt 0:00:00]} Re2+ {[%emt 0:00:43]} 50. Ka3 {[%emt 0:00:00]} Re3+ {[%emt 0:00:28]} 51. Ka2 {[%emt 0:00:00]} Rg3 {[%emt 0:01:13]} 52. Rf8 {[%emt 0:04:02]} Rxg4 {[%emt 0:00:08]} 53. Rxf6 {[%emt 0:00:06]} h5 {[%emt 0:03:14]} 54. f5 {[%emt 0:00:30]} Rf4 {[%emt 0:00:41]} 55. Rxg6 {[%emt 0:00:23]} Rxf5 {[%emt 0:00:15]} 56. Rg5 {[%emt 0:00:27]} Rxg5 {[%emt 0:00:18]} 57. hxg5 {[%emt 0:00:01]} Kd5 0-1